Cogmind - Beta 11.1 @@@ ROGUE MODE // 2022.07.10 @ 18:26:23 Player: Jim Result: Destroyed by Y-54 Guardian with Gatling Laser Performance ------------- Evolutions (3) 1500 Regions Visited (6) 1200 Robots Destroyed (73) 365 Value Destroyed (2623) 2623 Prototype IDs (23) 460 Alien Tech Used (0) 0 Bonus (512) 512 TOTAL SCORE: 6660 Bonus ------- High Alert Combat Kills 212 Aligned with FarCom 300 Cogmind --------- Core Integrity 0/700 Matter 234/300 Energy 100/100 System Corruption 2% Temperature Cool (12) Movement Rolling (150) Ox4 Location -7/Factory Parts ------- > --- POWER (1) -------- (None) > --- PROPULSION (3) --- Armored Wheel > --- UTILITY (6) ------ High-capacity Storage Unit Visual Processing Unit Visual Processing Unit Advanced Visual Processing Unit > --- WEAPON (3) ------- Plasma Cannon Longsword +1 > --- INVENTORY (20) --- Light Treads Armored Treads Carbon-fiber Leg Small Storage Unit Huge Storage Unit Core Analyzer Matter Filter Reaction Control System Cloak of Protection Core Shielding Supersonic Drone Bay (1/1) Peak State ------------ > --- POWER ------------ Light Deuterium Engine > --- PROPULSION ------- Aluminum Leg Aluminum Leg Carbon-fiber Leg > --- UTILITY ---------- High-capacity Storage Unit Visual Processing Unit Visual Processing Unit Recoil Stabilizer Weapon Shielding Improved Light Armor Plating > --- WEAPON ----------- Minigun Rocket Launcher Longsword +1 > --- INVENTORY -------- Ion Engine Improved Ion Engine Light Treads Carbon-fiber Leg Wheel Compact Wheel Small Storage Unit Huge Storage Unit Advanced Weight Redist. System Core Analyzer Matter Filter Reaction Control System Cloak of Protection Core Shielding Supersonic Drone Bay Plasma Cannon Assault Rifle Grenade Launcher Improved Grenade Launcher [Rating: 38] Favorites ----------- Power Ion Engine Engine Ion Engine Power Core Light Nuclear Core Propulsion Wheel Treads Light Treads Leg Aluminum Leg Wheel Wheel Utility High-capacity Storage Unit Device Matter Filter Storage High-capacity Storage Unit Processor Visual Processing Unit Protection Core Shielding Weapon Autogun Energy Gun Medium Laser Energy Cannon Plasma Cannon Ballistic Gun Autogun Ballistic Cannon Assault Cannon Launcher Grenade Launcher Slashing Weapon Longsword +1 Build | -11 -10 -10 -10 -9 -8 -7 ------- Run | Scr Mat Min Exi Min Mat Fac Slots Evolved 6 | . . . . . 4 2 Power . | . . . . . . . Propulsion 1 | . . . . . 1 . Utility 4 | . . . . . 2 2 Weapon 1 | . . . . . 1 . Parts Attached 74 | 2 3 3 1 8 31 26 Power 12 | . . 1 . 1 7 3 Engine 10 | . . 1 . 1 5 3 Core 2 | . . . . . 2 . Reactor . | . . . . . . . Propulsion 16 | 2 . 1 . 2 7 4 Treads 5 | . . 1 . . 4 . Leg 4 | . . . . . 3 1 Wheel 7 | 2 . . . 2 . 3 Hover . | . . . . . . . Flight . | . . . . . . . Utility 15 | . . 1 1 1 5 7 Device 5 | . . . . 1 2 2 Storage 2 | . . 1 1 . . . Processor 3 | . . . . . 1 2 Hackware . | . . . . . . . Protection 5 | . . . . . 2 3 Artifact . | . . . . . . . Weapon 31 | . 3 . . 4 12 12 Energy Gun . | . . . . . . . Energy Cannon 2 | . . . . . . 2 Ballistic Gun 12 | . 3 . . 2 5 2 Ballistic Cannon 3 | . . . . . 3 . Launcher 11 | . . . . 2 3 6 Special Weapon . | . . . . . . . Impact Weapon . | . . . . . . . Slashing Weapon 3 | . . . . . 1 2 Piercing Weapon . | . . . . . . . Special Melee Weapon . | . . . . . . . Unidentified Prototypes . | . . . . . . . Parts Lost 33 | . . 2 . . 12 19 Power 6 | . . 1 . . 2 3 Propulsion 11 | . . 1 . . 5 5 Utility 6 | . . . . . 1 5 Weapon 10 | . . . . . 4 6 Highest Loss Streak 8 | . . 2 . . 8 6 To Critical Strikes . | . . . . . . . Average Slot Usage (%) 87 | . 85 84 85 100 90 83 Engine 9 | . 14 13 14 14 5 6 Treads 7 | . . 13 14 10 5 . Leg 5 | . . . . . 10 14 Wheel 11 | . 28 14 14 17 8 3 Device 3 | . . . . 14 5 5 Storage 11 | . 14 14 14 14 9 7 Processor 5 | . . . . . 8 17 Protection 4 | . . . . . 11 7 Ballistic Gun 20 | . 23 28 28 27 14 8 Slashing Weapon 2 | . . . . . 4 6 Naked Turns . | . . . . . . . Heaviest Build 91 | 11 14 91 91 61 70 58 Greatest Support 40 | 20 20 10 10 22 40 35 Greatest Overweight (x) 9 | . . 9 9 5 5 4 Average Overweight (x) 3 | . . 6 6 3 1 1 Largest Inventory Capacity 25 | 8 8 25 25 20 20 20 Average Capacity 20 | 8 8 22 21 20 20 20 Most Carried 20 | 6 8 9 13 15 20 20 Average Carried 13 | 6 7 8 9 13 18 17 Final Capacity 25 | 8 8 25 20 20 20 20 Final Carried 18 | 6 8 9 13 15 18 11 Class Distribution -------------------- 86% | Mutant 13% | Skirmisher Dominant Class ---------------- Mutant | -10/Materials Mutant | -10/Mines Mutant | -10/Exiles Mutant | -9/Mines Skirmisher | -8/Materials Mutant | -7/Factory Resources | -11 -10 -10 -10 -9 -8 -7 ----------- Run | Scr Mat Min Exi Min Mat Fac Matter Collected 1587 | 220 43 143 . 146 594 441 Remotely . | . . . . . . . Salvage Created 2275 | . 66 85 . 70 1251 803 Parts 113 | . 8 6 . 6 58 35 Haulers Intercepted 2 | . . . . . 2 . Recyclers Shooed . | . . . . . . . Parts Field Recycled . | . . . . . . . Retrieved Matter . | . . . . . . . Parts Self-Destructed . | . . . . . . . Prevented . | . . . . . . . Kills | -11 -10 -10 -10 -9 -8 -7 ------- Run | Scr Mat Min Exi Min Mat Fac Combat Hostiles Destroyed 60 | . 3 2 . 6 26 23 Melee 12 | . . . . . 8 4 Guns 16 | . 3 2 . 1 7 3 Cannons 4 | . . . . . 4 . AOE 28 | . . . . 5 7 16 Classes Destroyed 14 | . 2 1 . 1 8 2 Worker 4 | . 1 . . . 2 1 Builder 1 | . . . . . . 1 Hauler 2 | . . . . . 2 . Recycler 3 | . . . . . 2 1 Mechanic 1 | . . . . . 1 . Operator 1 | . . . . . 1 . Watcher 1 | . . . . . 1 . Swarmer 11 | . 3 . . 4 2 2 Grunt 32 | . . 2 . 1 13 16 Brawler 1 | . . . . . 1 . Duelist 2 | . . . . 1 . 1 Sentry 11 | . . . . . 8 3 Hunter 2 | . . . . . 2 . Programmer 1 | . . . . . . 1 Best Kill Streak 12 | . 4 2 . 4 12 6 Combat Bots Only 7 | . 3 2 . 4 7 5 Max Kills in Single Turn 4 | . 1 1 . 4 4 4 Gunslinging . | . . . . . . . Exploded 4 | . . . . 4 2 4 Melee 1 | . . . . . 1 1 Uniques/NPCs Destroyed . | . . . . . . . Combat | -11 -10 -10 -10 -9 -8 -7 -------- Run | Scr Mat Min Exi Min Mat Fac Damage Taken 4451 | . 234 108 . 113 1759 2237 Core 1005 | . 52 12 . 17 224 700 Absorbed by Shields . | . . . . . . . Redirected to Shielding 153 | . . . . . 45 108 Core Remaining (%) 75 | 100 . . . 67 59 . Volleys Fired 109 | . 12 5 . 6 48 38 Largest 3 | . 2 2 . 2 3 2 Hottest 111 | . 46 46 . 46 111 80 Shots Fired 196 | . 24 10 . 8 100 54 Gun 132 | . 24 10 . 4 62 32 Cannon 28 | . . . . . 26 2 Launcher 36 | . . . . 4 12 20 Special . | . . . . . . . Kinetic 158 | . 24 10 . 4 88 32 Thermal 2 | . . . . . . 2 Explosive 36 | . . . . 4 12 20 Electromagnetic . | . . . . . . . Robot Hit Streak 9 | . 3 5 . 7 9 7 Robot Miss Streak 6 | . 3 1 . 1 6 3 Penetration Max . | . . . . . . . Secondary Targets 1 | . . 1 . . . . Max Gunslinging Chain 1 | . . 1 . . . . Shots Hit Robots 151 | . 13 7 . 6 70 55 Core Hits 134 | . 4 4 . 7 62 57 Critical Kills . | . . . . . . . Critical Parts Destroyed . | . . . . . . . Critical Strikes 6 | . . . . . 2 4 Blast 2 | . . . . . 2 . Sever 4 | . . . . . . 4 Melee Attacks 35 | . . . . . 14 21 Impact . | . . . . . . . Slashing 35 | . . . . . 14 21 Piercing . | . . . . . . . Sneak Attacks 3 | . . . . . 2 1 Combat Hostiles . | . . . . . . . Follow-up Attacks . | . . . . . . . Damage Inflicted 6589 | . 213 110 . 387 2828 3051 Guns 1259 | . 213 110 . 53 558 325 Cannons 397 | . . . . . 346 51 Explosions 3347 | . . . . 334 1219 1794 Melee 1586 | . . . . . 705 881 Ramming . | . . . . . . . Kinetic 1605 | . 213 110 . 53 904 325 Thermal 51 | . . . . . . 51 Explosive 3347 | . . . . 334 1219 1794 Electromagnetic . | . . . . . . . Impact . | . . . . . . . Slashing 1586 | . . . . . 705 881 Piercing . | . . . . . . . Highest Corruption 2 | . . . . . . 2 Average Corruption 1 | . . . . . . 1 Corruption Purged . | . . . . . . . Corruption Blocked . | . . . . . . . Effects 9 | . . . . . . 9 Message Errors 2 | . . . . . . 2 Heat Flow Errors 1 | . . . . . . 1 Energy Discharges 3 | . . . . . . 3 Data Loss (major) 1 | . . . . . . 1 Misfires 1 | . . . . . . 1 Alerts 1 | . . . . . . 1 Overload Shots . | . . . . . . . Overflow Damage 127 | . . . . 12 59 56 Projectiles . | . . . . . . . Explosions 84 | . . . . 12 22 50 Melee 43 | . . . . . 37 6 Knockbacks 5 | . . . . . 5 . Impact . | . . . . . . . Kinetic 4 | . . . . . 4 . Secondary 1 | . . . . . 1 . Self-Inflicted Damage 197 | . . . . 15 53 129 Shots 10 | . . . . 1 2 7 Rammed . | . . . . . . . Targets Rammed . | . . . . . . . Kicked . | . . . . . . . Crushed . | . . . . . . . Highest Temperature 249 | . 12 35 . 12 249 108 Average Temperature 51 | . 6 18 . 6 70 19 Received Heat Transfer 1581 | . . 81 . 12 783 705 Effects 3 | . . . . . 3 . Interference 3 | . . . . . 3 . Siege Activations . | . . . . . . . Robots Corrupted . | . . . . . . . Combat Hostiles . | . . . . . . . Parts Fried . | . . . . . . . Impact Corruptions . | . . . . . . . Robots Melted . | . . . . . . . Combat Hostiles . | . . . . . . . Parts Melted . | . . . . . . . Heat Transferred 100 | . . . . . . 100 Parts Sabotaged . | . . . . . . . Parts Stolen . | . . . . . . . Parts Stripped . | . . . . . . . Power Chain Reactions . | . . . . . . . Missiles Intercepted . | . . . . . . . Alert | -11 -10 -10 -10 -9 -8 -7 ------- Run | Scr Mat Min Exi Min Mat Fac Peak Influence 678 | . 105 85 . 215 678 440 Initial 241 | . . 40 . . 83 241 Average 259 | . 14 63 . 156 363 303 Maximum Alert Level 2 | . . . . 1 2 2 Low Security (%) 40 | 100 100 100 . 35 42 . Level 1 33 | . . . . 64 1 84 Level 2 25 | . . . . . 55 15 Level 3 . | . . . . . . . Level 4 . | . . . . . . . Level 5 . | . . . . . . . High Security . | . . . . . . . Max Security . | . . . . . . . Squads Dispatched 14 | . . . . . 6 8 Investigation 2 | . . . . . 1 1 Extermination 1 | . . . . . . 1 Reinforcement 4 | . . . . . 2 2 Assault . | . . . . . . . Garrison 7 | . . . . . 3 4 Intercept . | . . . . . . . Searches Triggered . | . . . . . . . Construction Impeded . | . . . . . . . Haulers Reinforced 1 | . . . . . . 1 Active Scanning Responses . | . . . . . . . Cargo Convoy Interrupts . | . . . . . . . Stealth | -11 -10 -10 -10 -9 -8 -7 --------- Run | Scr Mat Min Exi Min Mat Fac Distress Signals 5 | . 1 . . . 3 1 Communications Jammed . | . . . . . . . Distress Signals . | . . . . . . . Times Spotted 73 | . 6 2 . 6 33 26 Peak Tracking Total 10 | . 4 2 . 4 10 6 Tactical Retreats 1 | . . . . . 1 . Traps | -11 -10 -10 -10 -9 -8 -7 ------- Run | Scr Mat Min Exi Min Mat Fac Traps Triggered 4 | . . . . . 2 2 Indirectly . | . . . . . . . Trap Hack Attempts . | . . . . . . . Triggered . | . . . . . . . Disarmed . | . . . . . . . Reprogrammed . | . . . . . . . Reused . | . . . . . . . Traps Extracted . | . . . . . . . Installed . | . . . . . . . Triggered . | . . . . . . . Machines | -11 -10 -10 -10 -9 -8 -7 ---------- Run | Scr Mat Min Exi Min Mat Fac Machines Disabled 8 | . 2 . . 1 4 1 Max in Single Turn 2 | . 1 . . 1 2 1 Machines Sabotaged . | . . . . . . . Garrisons Compromised . | . . . . . . . Overloaded Fab Kills . | . . . . . . . Hacking | -11 -10 -10 -10 -9 -8 -7 --------- Run | Scr Mat Min Exi Min Mat Fac Machines Accessed 7 | . . . 4 . 1 2 Terminals 3 | . . . . . 1 2 Fabricators . | . . . . . . . Repair Stations . | . . . . . . . Recycling Units . | . . . . . . . Scanalyzers . | . . . . . . . Garrison Access . | . . . . . . . Total Hacks 49 | . . . 43 . 2 4 Successful 45 | . . . 43 . 1 1 Failed 4 | . . . . . 1 3 Catastrophic . | . . . . . . . Database Lockouts . | . . . . . . . Manual 4 | . . . 1 . 2 1 Terminals 6 | . . . . . 2 4 Fabricators . | . . . . . . . Repair Stations . | . . . . . . . Recycling Units . | . . . . . . . Scanalyzers . | . . . . . . . Garrison Access . | . . . . . . . Terminal Hacks 45 | . . . 43 . 1 1 Record 43 | . . . 42 . 1 . Open DSF 1 | . . . . . . 1 EX-Prototype ID Bank 1 | . . . 1 . . . Fabricator Hacks . | . . . . . . . Repair Station Hacks . | . . . . . . . Recycling Unit Hacks . | . . . . . . . Scanalyzer . | . . . . . . . Garrison Access Hacks . | . . . . . . . Unauthorized Hacks . | . . . . . . . Terminals . | . . . . . . . Fabricators . | . . . . . . . Repair Stations . | . . . . . . . Recycling Units . | . . . . . . . Scanalyzers . | . . . . . . . Garrison Access . | . . . . . . . Data Cores Recovered . | . . . . . . . Used . | . . . . . . . Hacking Detections 2 | . . . . . 1 1 Full Trace Events 1 | . . . . . 1 . Feedback Events . | . . . . . . . Feedback Blocked . | . . . . . . . Robot Schematics Acquired . | . . . . . . . Robots Built . | . . . . . . . Authchips . | . . . . . . . Time . | . . . . . . . Total Robot Build Rating . | . . . . . . . Part Schematics Acquired . | . . . . . . . Parts Built . | . . . . . . . Authchips . | . . . . . . . Time . | . . . . . . . Total Part Build Rating . | . . . . . . . Parts Repaired . | . . . . . . . Time . | . . . . . . . Parts Recycled . | . . . . . . . Recycled Matter . | . . . . . . . Retrieved Matter . | . . . . . . . Retrieved Components . | . . . . . . . Parts Scanalyzed . | . . . . . . . Part Schematics Acquired . | . . . . . . . Parts Damaged . | . . . . . . . Bothacking | -11 -10 -10 -10 -9 -8 -7 ------------ Run | Scr Mat Min Exi Min Mat Fac Used RIF Installer . | . . . . . . . Robots Hacked . | . . . . . . . Non-combat . | . . . . . . . Combat . | . . . . . . . Robot Hacks Applied . | . . . . . . . Relay Couplers Released . | . . . . . . . Fabnet Peak Effective % . | . . . . . . . Robots Rewired . | . . . . . . . Allies Hacked . | . . . . . . . Hacks Repelled . | . . . . . . . Allies | -11 -10 -10 -10 -9 -8 -7 -------- Run | Scr Mat Min Exi Min Mat Fac Total Allies . | . . . . . . . Largest Group . | . . . . . . . Highest-Rated Group . | . . . . . . . Highest-Rated Ally . | . . . . . . . Total Orders . | . . . . . . . Ally Attacks . | . . . . . . . Total Damage . | . . . . . . . Kills . | . . . . . . . Allies Corrupted . | . . . . . . . Allies Melted . | . . . . . . . Intel | -11 -10 -10 -10 -9 -8 -7 ------- Run | Scr Mat Min Exi Min Mat Fac Robot Analysis Total . | . . . . . . . Derelict Logs Recovered 1 | . . . . 1 . . Drone Launches . | . . . . . . . Drone Recoveries . | . . . . . . . Exploration | -11 -10 -10 -10 -9 -8 -7 ------------- Run | Scr Mat Min Exi Min Mat Fac Turns Passed 4921 | 6 172 527 1546 324 1259 1087 Spaces Moved 2764 | 4 163 278 886 214 684 535 Core . | . . . . . . . Treads 36 | . . . . . 36 . Legs 549 | . . . . . 225 324 Wheels 2179 | 4 163 278 886 214 423 211 Hover . | . . . . . . . Flight . | . . . . . . . Fastest Speed 80 | 80 80 95 155 115 115 105 Average Speed 160 | 80 80 183 174 139 151 169 Slowest Speed 400 | 80 80 215 215 155 400 400 Overloaded Moves . | . . . . . . . Propulsion Burnouts . | . . . . . . . Robots Hopped . | . . . . . . . Cave-ins Triggered . | . . . . . . . Exploration Rate (%) 37 | 2 34 41 94 33 49 12 Regions Visited 6 Branch Regions 3 Pre-discovered Areas 1 | . . . 1 . . . Known Exits Taken . | . . . . . . . Unknown Exits Taken 6 | 1 1 1 1 1 1 . Scrap Searched 3 | . . 1 . 2 . . Spaces Dug . | . . . . . . . Terrain Destroyed 216 | . . . . 28 88 100 Melee . | . . . . . . . Projectile 5 | . . . . . 5 . AOE 211 | . . . . 28 83 100 Terrain Rammed . | . . . . . . . Walls Destroyed . | . . . . . . . Machines Disabled . | . . . . . . . Actions | -11 -10 -10 -10 -9 -8 -7 --------- Run | Scr Mat Min Exi Min Mat Fac Total 3045 | 5 185 288 890 229 811 637 Wait 19 | . . . . . 11 8 Move 2758 | 3 162 277 885 213 683 535 Hop . | . . . . . . . Pick Up 37 | . 4 2 3 1 19 8 Fast Attach 8 | . 1 1 1 . 4 1 Attach 32 | . . 2 . 2 11 17 Detach 5 | . 1 1 1 1 . 1 Swap 34 | 2 2 . . 6 16 8 Drop 8 | . 3 . . . 5 . Fire 109 | . 12 5 . 6 48 38 Melee 35 | . . . . . 14 21 Ram . | . . . . . . . Kick . | . . . . . . . Crush . | . . . . . . . Escape Stasis . | . . . . . . . Rewire . | . . . . . . . Trap . | . . . . . . . Miscellaneous . | . . . . . . . Route ------- -11/Scrapyard -10/Materials -10/Mines -10/Exiles (discovered 2 exits: [*Min x2]) -9/Mines -8/Materials -7/Factory History --------- Turn | Location | Event 4 | -11/Scrapyard | Discovered new exit (range 3) 7 | -11/Scrapyard | Entered Materials 134 | -10/Materials | Discovered new exit (range 14) 179 | -10/Materials | Entered Mines 305 | -10/Mines | Build established: Mutant 356 | -10/Mines | Received a Rocket Launcher from a helpful Derelict 691 | -10/Mines | Deemed a non-threat by the Exiles lab entrance 694 | -10/Mines | Discovered new exit (range 5) 706 | -10/Mines | Entered Exiles 767 | -10/Exiles | Discovered new exit (range 15) 857 | -10/Exiles | Met 8R-AWN 913 | -10/Exiles | Met EX-HEX 1109 | -10/Exiles | Met EX-DEC 1195 | -10/Exiles | Learned location of Zion (-7) 1348 | -10/Exiles | Discovered new exit (range 14) 1503 | -10/Exiles | Visited The Gauntlet 1891 | -10/Exiles | Met EX-BIN 1953 | -10/Exiles | Aligned with FarCom system 1954 | -10/Exiles | Given EX-Vault access code 2032 | -10/Exiles | Opened EX-Vault 2047 | -10/Exiles | Found Cloak of Protection 2056 | -10/Exiles | Found Supersonic Drone Bay 2059 | -10/Exiles | Found Longsword +1 2095 | -10/Exiles | Warned to stay clear of 0b10 Research branches 2252 | -10/Exiles | Stole three prototypes: Cloak of Protection, Supersonic Drone Bay, Longsword +1 2252 | -10/Exiles | Entered Mines 2286 | -9/Mines | Learned Materials emergency access door positions 2376 | -9/Mines | Discovered new exit (range 14) 2576 | -9/Mines | Entered Materials 2576 | -8/Materials | Evolved 4 slots: Propulsion x1, Utility x2, Weapon x1 2870 | -8/Materials | Build established: Skirmisher 3128 | -8/Materials | Garrison activated, responded to threat 3158 | -8/Materials | Destroyed 7 combat bots 3298 | -8/Materials | Destroyed 7 combat bots 3330 | -8/Materials | Lost 8 parts (1p3n1u3w) 3554 | -8/Materials | Build established: Mutant 3762 | -8/Materials | Discovered new exit (range 13) 3835 | -8/Materials | Entered Factory 3835 | -7/Factory | Evolved 2 slots: Utility x2 3837 | -7/Factory | FarCom data flow suspended 4357 | -7/Factory | Garrison activated, responded to threat 4514 | -7/Factory | Lost 5 parts (2u3w) 4651 | -7/Factory | Lost 4 parts (1p2n1w) 4858 | -7/Factory | Core integrity fell below 50% 4866 | -7/Factory | Garrison activated, responded to threat 4882 | -7/Factory | Core integrity fell below 20% 4922 | -7/Factory | Destroyed by Y-54 Guardian with Gatling Laser Last Messages --------------- 04866_ L-41 Fighter Carbon-fiber Leg severed. 04866_ L-41 Fighter calls for garrison reinforcements. 04866_ ALERT: Activating Garrison Access F002. 04868_ L-41 Fighter Imp. Deuterium Engine severed. 04870_ Core Shielding destroyed. 04871_ L-41 Fighter destroyed. 04873_ G-47 Trooper destroyed. 04874_ Com. Wheel destroyed. 04875_ G-47 Trooper destroyed. 04878_ Acquired 21 matter. 04879_ Acquired 37 matter. 04880_ Acquired 35 matter. 04884_ Acquired 16 matter. 04886_ GXB#80BFSKB6:HFT3FSNZTLM/4 04888_ The unstable cave ceiling collapses. 04888_ Imp. Heat Sink crushed. 04896_ Imp. Grenade Launcher destroyed. 04896_ Destroyed Imp. Grenade Launcher. 04907_ U-05 Engineer lays Concrete. 04914_ Adv. Weight Redist. System destroyed. Map ----- +----------------------------------------------------+ | ?????????????????????????????????????????????????? | | ?????????????????????????????????????????????????? | | ?????????????????????????????????????????????????? | | ?????????????????????????????????????????????????? | | ?????????????????????????????????????????????????? | | ?????????????????????????????????????????????????? | | ?????????????????????????????????????????????????? | | ?????????????????????????????????????????????????? | | ?????????????????????????????????????????????????? | | ?????????????????????????????????????????????????? | | ?????????????????????????????????#+??????????????? | | ?????????????????????????????????# ?????+#???????? | | ?????????????????????????????????# ????? #???????? | | ?????????????????????????????????# ##### #???????? | | ????????????????????????????????? #???????? | | ?????????????????????????????????# #???????? | | ?????????????????????????????????# """ #???????? | | ?????????????????????????????????# """ #???????? | | ?????????????????????????????????? """ #???????? | | ?????????????????????????????????? ###?????? | | ??????????????????????????????????? ??????? | | ????????????????????????????????#### ##??????? | | ????????????????????????????????# #??????? | | ????????????????????#############! #??????? | | ????????????????????# # * ##??????? | | ????????????????????# @ YY # = # ######## | | ????????????????????# """"""" # = *= | | ????????????????????# """"""" # / ### | | ????????????????????# """"""" # # | #?? | | ????????????????????# """"""" !!! #?? | | ????????????????????+ # # ! #?? | | ????????????????????############## # # ! ### | | ?????????????????????????????????###### | | ??????????????????????????????????????# | | ??????????????????????????????????????# | | ??????????????????????????############# ##/##### | | ???????????????????????? # ! | | ???????????????????????? # """" | | ???????????????????????? + """" ! | | ???????????????????????? # """" | | ???????????????????????? ## """" " | | ????????????????????????? ## """" " | | ????????????????????????? ## """" | | ??????????????????????????###############?# """" " | | ??????????????????????????????????????????# " | | ??????????????????????????????????????????? * ??? | | ???????????????????????????????????????????####??? | | | | | | | +----------------------------------------------------+ Best States ------------- Heat Dissipation 34 Energy Generation 14 Energy Capacity 265 Matter Stores 300 Matter Capacity 300 Sight Range 20 Terrain Scan Density 10 Cloak Strength 5 Additional Mass Support 9 Armor Coverage 150 Core Shielding 20 Weapon Shielding 33 Evasion (%) 44 Recoil Reduction 4 Matter Filtering 45 Item Schematics ----------------- None Robot Schematics ------------------ None Fabricated ------------ Nothing Alien Tech Used ----------------- None Achievements -------------- None Challenges ------------ None Game ------ Seed MediumSlugThermoblaster Manual? 0 Play Time 01:17:19 Cumulative 32.8 hours Start 2022.07.10 @ 16:21:29 End 2022.07.10 @ 18:26:23 Sessions 1 Manual Loads 0 Difficulty Rogue Special Mode None Game No. 45 Rogue 32 Adventurer 0 Explorer 13 Win Type - Total 0 Types 0/0/0/0/0/0/0/0/0 Lore% 23 Gallery% 24 Achievement% 20 Wizard Run 0 Options --------- ASCII 1 Keyboard 1 Movement Arrows Keybinds 0 Fullscreen 1 Font 18/SmallcapsGlow Map View 76x50 Tactical HUD 1 Map Filters NONE Filters NONE Steam 1 RUN: 9a673dbf-16cd-480f-ba10-39f8ee87789b